Cogmind - Beta 11 @@@ ROGUE MODE // 2022.03.20 @ 23:25:50 Player: Andru7428 Result: Self-destructed Performance ------------- Evolutions (7) 3500 Regions Visited (14) 2800 Robots Destroyed (149) 745 Value Destroyed (4942) 4942 Prototype IDs (21) 420 Alien Tech Used (0) 0 Bonus (1988) 1988 TOTAL SCORE: 14395 Bonus ------- High Alert Combat Kills 356 Follower Combat Kills 924 Entered DSFs 1000 Friendly Fire -292 Cogmind --------- Core Integrity 1142/1300 Matter 300/300 Energy 135/135 System Corruption 0% Temperature Cool (0) Movement Hovering (160) Ox2 Location -3/Research Parts ------- > --- POWER (1) -------- Compact Particle Reactor > --- PROPULSION (5) --- Gravmag Array > --- UTILITY (12) ----- Large Storage Unit Advanced Visual Processing Unit Target Analyzer Core Analyzer Core Analyzer Improved Weapon Shielding > --- WEAPON (3) ------- Enhanced Force Lance Enhanced Force Lance Enhanced Force Lance > --- INVENTORY (15) --- Compact Particle Reactor Medium Treads Armored Medium Treads Advanced Medium Treads Improved Signal Interpreter Improved Weapon Shielding Improved Weapon Shielding Improved Shock Absorption System Authchip [Armor] Gauss Rifle Gauss Rifle Bore Cannon Bore Cannon Missile Launcher Phasing Sabre Peak State ------------ > --- POWER ------------ Light Angular Momentum Engine > --- PROPULSION ------- Antigrav System Antigrav System Antigrav System Antigrav System > --- UTILITY ---------- Large Storage Unit Advanced Visual Processing Unit Target Analyzer Core Analyzer Improved Transmission Jammer Advanced Transmission Jammer Reaction Control System Improved Light Armor Plating Light Regenerative Plating System Restoration Module > --- WEAPON ----------- Enhanced Force Lance Enhanced Force Lance Enhanced Force Lance > --- INVENTORY -------- Cooled Ion Engine Enhanced Fission Core Improved Signal Interpreter Authchip [Armor] Gauss Rifle Gauss Rifle Bore Cannon Bore Cannon Missile Launcher Phasing Sabre [Rating: 97] Favorites ----------- Power Micro Nuclear Core Engine Ion Engine Power Core Micro Nuclear Core Reactor Compact Particle Reactor Propulsion Improved Titanium Leg Leg Improved Titanium Leg Hover Unit Gravmag Array Utility Light Regenerative Plating Device Disposable Heat Sink Storage Large Storage Unit Processor Target Analyzer Hackware Hacking Suite Protection Light Regenerative Plating Weapon Enhanced Force Lance Energy Gun Particle Gun Ballistic Gun Minigun Ballistic Cannon Improved Light Cannon Launcher Missile Launcher Impact Weapon Heavy Mace Slashing Weapon Scythe Piercing Weapon Enhanced Force Lance Build | -11 -10 -9 -9 -8 -7 -7 -6 -6 -6 -6 -5 -4 -4 -3 ------- Run | Scr Mat Mat Sto Mat Fac DSF Fac Was Fac Ext Fac Fac DSF Res Slots Evolved 14 | . . 2 . 2 2 . 2 . . . 2 2 . 2 Power . | . . . . . . . . . . . . . . . Propulsion 3 | . . 1 . . . . . . . . 1 . . 1 Utility 10 | . . 1 . 2 1 . 2 . . . 1 2 . 1 Weapon 1 | . . . . . 1 . . . . . . . . . Parts Attached 175 | 6 13 16 18 31 2 5 1 2 17 26 24 2 6 6 Power 14 | 1 1 1 . 3 . 1 . . . 2 3 . 1 1 Engine 7 | 1 1 1 . 2 . . . . . 1 1 . . . Core 6 | . . . . 1 . 1 . . . 1 2 . 1 . Reactor 1 | . . . . . . . . . . . . . . 1 Propulsion 41 | 2 6 6 8 6 . . . 1 1 4 5 . 2 . Treads . | . . . . . . . . . . . . . . . Leg 35 | 2 6 6 8 6 . . . 1 1 4 1 . . . Wheel . | . . . . . . . . . . . . . . . Hover 6 | . . . . . . . . . . . 4 . 2 . Flight . | . . . . . . . . . . . . . . . Utility 69 | 1 3 7 3 12 1 1 1 1 9 10 12 2 3 3 Device 23 | . 2 2 1 2 . . . 1 4 4 5 1 . 1 Storage 4 | 1 1 . . 1 . . . . . 1 . . . . Processor 11 | . . 1 . 1 1 . 1 . 1 3 2 . . 1 Hackware 3 | . . . . . . . . . 3 . . . . . Protection 28 | . . 4 2 8 . 1 . . 1 2 5 1 3 1 Artifact . | . . . . . . . . . . . . . . . Weapon 51 | 2 3 2 7 10 1 3 . . 7 10 4 . . 2 Energy Gun 6 | . 3 1 1 1 . . . . . . . . . . Energy Cannon . | . . . . . . . . . . . . . . . Ballistic Gun 17 | 2 . 1 3 4 1 2 . . 4 . . . . . Ballistic Cannon 10 | . . . 1 3 . . . . . 3 2 . . 1 Launcher 3 | . . . 2 . . 1 . . . . . . . . Special Weapon . | . . . . . . . . . . . . . . . Impact Weapon 3 | . . . . 1 . . . . 2 . . . . . Slashing Weapon 1 | . . . . 1 . . . . . . . . . . Piercing Weapon 11 | . . . . . . . . . 1 7 2 . . 1 Special Melee Weapon . | . . . . . . . . . . . . . . . Unidentified Prototypes 8 | . . 1 2 2 . . . . . . 1 . . 2 Parts Lost 31 | . 1 2 3 1 . 1 . . 1 2 9 . 6 5 Power 2 | . . 1 . . . . . . . . . . 1 . Propulsion 7 | . . . 1 . . . . . . 1 4 . . 1 Utility 19 | . . . 1 1 . 1 . . 1 1 5 . 5 4 Weapon 3 | . 1 1 1 . . . . . . . . . . . Highest Loss Streak 7 | . 1 1 2 1 . 1 . . 1 1 7 . 4 3 To Critical Strikes . | . . . . . . . . . . . . . . . Average Slot Usage (%) 96 | . 96 96 99 98 100 99 93 93 99 96 95 90 83 71 Engine 5 | . 14 11 11 5 7 1 . . . . . 5 3 . Core 2 | . . . . 2 . 4 6 6 6 5 4 . . 1 Leg 23 | . 28 33 32 27 23 23 20 20 20 19 17 . . . Hover 1 | . . . . . . . . . . . 2 21 16 8 Device 8 | . 11 10 11 9 7 7 6 6 7 2 3 15 11 13 Storage 8 | . 14 11 11 9 7 7 6 6 6 6 5 5 5 4 Processor 12 | . . . . 8 15 15 20 20 25 24 25 15 15 17 Protection 12 | . . 8 10 17 15 15 13 13 11 15 15 11 13 7 Energy Gun 4 | . 22 18 3 . . . . . . . . . . . Ballistic Gun 8 | . 4 3 10 11 23 23 20 20 18 2 . . . . Ballistic Cannon 2 | . . . 7 6 . . . . . . 1 . . . Piercing Weapon 5 | . . . . . . . . . . 16 15 15 15 13 Naked Turns . | . . . . . . . . . . . . . . . Heaviest Build 75 | 11 20 29 30 48 50 50 48 48 52 64 74 71 75 66 Greatest Support 73 | 20 20 33 39 60 60 60 60 60 60 57 73 44 44 40 Greatest Overweight (x) 22 | 3 . . . . . . . . . 1 22 1 1 1 Average Overweight (x) . | . . . . . . . . . . . . 1 1 1 Largest Inventory Capacity 15 | 8 10 10 10 15 15 15 15 15 15 15 15 15 15 15 Average Capacity 13 | 7 9 10 10 13 15 15 15 15 15 15 15 15 15 15 Most Carried 15 | 5 10 10 10 15 14 15 14 15 15 15 15 15 15 15 Average Carried 12 | 3 9 9 9 12 13 14 14 14 14 14 13 12 14 14 Final Capacity 15 | 8 10 10 10 15 15 15 15 15 15 15 15 15 15 15 Final Carried 15 | 5 10 10 10 15 13 15 14 15 15 15 10 15 13 15 Class Distribution -------------------- 70% | Mutant 14% | Gunner 9% | Commander-Mutant Dominant Class ---------------- Mutant | -10/Materials Mutant | -9/Materials Mutant | -9/Storage Mutant | -8/Materials Gunner | -7/Factory Gunner | -7/DSF Gunner | -6/Factory Gunner | -6/Waste Gunner | -6/Factory Mutant | -6/Extension Commander-Mutant | -5/Factory Mutant | -4/Factory Mutant | -4/DSF Mutant | -3/Research Resources | -11 -10 -9 -9 -8 -7 -7 -6 -6 -6 -6 -5 -4 -4 -3 ----------- Run | Scr Mat Mat Sto Mat Fac DSF Fac Was Fac Ext Fac Fac DSF Res Matter Collected 4172 | 221 168 167 544 1148 127 238 . . 167 853 403 . 81 55 Remotely 42 | . . . . . . . . . . 42 . . . . Salvage Created 5591 | . 428 505 965 1334 47 460 . . 223 808 492 . 203 126 Parts 340 | . 24 40 66 91 4 27 . . 6 34 26 . 15 7 Haulers Intercepted 15 | . 2 2 4 6 1 . . . . . . . . . Recyclers Shooed 2 | . . 1 . 1 . . . . . . . . . . Parts Field Recycled . | . . . . . . . . . . . . . . . Retrieved Matter . | . . . . . . . . . . . . . . . Parts Self-Destructed . | . . . . . . . . . . . . . . . Prevented . | . . . . . . . . . . . . . . . Kills | -11 -10 -9 -9 -8 -7 -7 -6 -6 -6 -6 -5 -4 -4 -3 ------- Run | Scr Mat Mat Sto Mat Fac DSF Fac Was Fac Ext Fac Fac DSF Res Combat Hostiles Destroyed 117 | . 12 17 22 28 . 9 . . 4 11 9 . 3 2 Melee 20 | . . . . . . . . . . 8 7 . 3 2 Guns 63 | . 12 17 11 13 . 4 . . 4 2 . . . . Cannons 20 | . . . 2 15 . . . . . 1 2 . . . AOE 14 | . . . 9 . . 5 . . . . . . . . Classes Destroyed 18 | . 4 1 4 5 . 2 . . 1 1 . . . . Worker 1 | . . . . 1 . . . . . . . . . . Builder 5 | . . . 3 2 . . . . . . . . . . Tunneler 2 | . . . . 1 . . . . . 1 . . . . Hauler 15 | . 2 2 4 6 1 . . . . . . . . . Recycler 2 | . . . . . . . . . . 1 1 . . . Mechanic 1 | . . . . 1 . . . . . . . . . . Operator 1 | . . . 1 . . . . . . . . . . . Watcher 4 | . 1 2 . 1 . . . . . . . . . . Swarmer 30 | . 6 11 3 4 . . . . . 1 4 . . 1 Grunt 50 | . 6 5 12 15 . 5 . . 3 3 1 . . . Brawler 2 | . . . . 1 . 1 . . . . . . . . Duelist 2 | . . . 1 1 . . . . . . . . . . Protector 1 | . . . 1 . . . . . . . . . . . Sentry 19 | . . 1 5 6 . . . . . 6 . . . 1 Specialist 5 | . . . . . . 2 . . . . . . 3 . Hunter 3 | . . . . 1 . . . . . 1 1 . . . Programmer 3 | . . . . . . . . . 1 . 2 . . . Heavy 2 | . . . . . . 1 . . . . 1 . . . Thug 1 | . . . . . . . . . . 1 . . . . Best Kill Streak 7 | . 5 7 6 6 1 6 . . 2 3 5 . 2 1 Combat Bots Only 7 | . 5 7 6 4 . 6 . . 2 3 5 . 2 1 Max Kills in Single Turn 4 | . 2 2 4 2 1 3 . . 1 2 2 . 1 1 Gunslinging 1 | . . 1 . . . . . . . . . . . . Exploded 4 | . . . 4 . . 3 . . . . . . . . Melee 2 | . . . . . . . . . . 1 2 . 1 1 Uniques/NPCs Destroyed . | . . . . . . . . . . . . . . . Combat | -11 -10 -9 -9 -8 -7 -7 -6 -6 -6 -6 -5 -4 -4 -3 -------- Run | Scr Mat Mat Sto Mat Fac DSF Fac Was Fac Ext Fac Fac DSF Res Damage Taken 9110 | . 580 551 580 1717 . 426 . . 336 1091 1661 . 1498 670 Core 1096 | . 182 88 33 118 . 47 . . 20 142 222 . 86 158 Absorbed by Shields 109 | . . . . . . 31 . . . 78 . . . . Redirected to Shielding 140 | . . . . . . . . . . 70 70 . . . Regen/Repaired (Parts) 971 | . . . . 290 38 49 13 . 160 222 149 28 22 . Core Remaining (%) 77 | 100 27 . 69 78 . 93 . . . 80 77 . 92 . Volleys Fired 298 | . 46 50 58 97 3 15 . . 9 13 7 . . . Largest 3 | . 2 2 2 2 3 3 . . 3 3 2 . . . Hottest 171 | . 130 130 88 88 78 78 . . 81 171 114 . . . Shots Fired 630 | . 92 100 111 196 9 41 . . 30 38 13 . . . Gun 439 | . 92 100 63 90 9 39 . . 30 16 . . . . Cannon 186 | . . . 45 106 . . . . . 22 13 . . . Launcher 5 | . . . 3 . . 2 . . . . . . . . Special . | . . . . . . . . . . . . . . . Kinetic 429 | . 2 4 98 196 9 39 . . 30 38 13 . . . Thermal 196 | . 90 96 10 . . . . . . . . . . . Explosive 5 | . . . 3 . . 2 . . . . . . . . Electromagnetic . | . . . . . . . . . . . . . . . Robot Hit Streak 17 | . 8 16 11 17 3 6 . . 5 5 3 . . . Robot Miss Streak 8 | . 4 5 4 7 2 2 . . 2 8 1 . . . Penetration Max 1 | . . . . 1 . . . . 1 1 . . . . Secondary Targets 5 | . 2 1 . 2 . . . . . . . . . . Max Gunslinging Chain 1 | . 1 1 . 1 . . . . . . . . . . Shots Hit Robots 480 | . 56 67 76 154 4 29 . . 11 37 30 . 9 7 Core Hits 276 | . 19 26 45 108 1 23 . . 11 23 13 . 4 3 Critical Kills 9 | . . . . 3 . . . . 1 4 1 . . . Critical Parts Destroyed 12 | . . . . . . . . . 1 10 1 . . . Critical Strikes 34 | . 1 1 2 5 . . . . 2 18 4 . . 1 Burn 2 | . 1 1 . . . . . . . . . . . . Destroy 22 | . . . . 3 . . . . 2 15 2 . . . Blast 4 | . . . 2 2 . . . . . . . . . . Impale 6 | . . . . . . . . . . 3 2 . . 1 Melee Attacks 137 | . . . . 1 . . . . 9 42 38 5 12 30 Impact 8 | . . . . 1 . . . . 7 . . . . . Slashing . | . . . . . . . . . . . . . . . Piercing 129 | . . . . . . . . . 2 42 38 5 12 30 Sneak Attacks 4 | . . . . . . . . . . 2 1 . . 1 Combat Hostiles 1 | . . . . . . . . . . 1 . . . . Follow-up Attacks 14 | . . . . . . . . . . 3 7 . 3 1 Damage Inflicted 11896 | . 879 1095 1957 2814 71 1107 . . 313 1712 1144 . 439 365 Guns 5268 | . 879 1095 795 1406 69 505 . . 312 207 . . . . Cannons 2694 | . . . 543 1394 . . . . . 516 241 . . . Explosions 1221 | . . . 619 . . 602 . . . . . . . . Melee 2696 | . . . . . . . . . . 989 903 . 439 365 Ramming 17 | . . . . 14 2 . . . 1 . . . . . Kinetic 5952 | . 10 51 1241 2800 69 505 . . 312 723 241 . . . Thermal 2010 | . 869 1044 97 . . . . . . . . . . . Explosive 1221 | . . . 619 . . 602 . . . . . . . . Electromagnetic . | . . . . . . . . . . . . . . . Impact . | . . . . . . . . . . . . . . . Slashing . | . . . . . . . . . . . . . . . Piercing 2696 | . . . . . . . . . . 989 903 . 439 365 Highest Corruption 7 | . . . 1 3 . . . 6 7 7 3 . 2 . Average Corruption 5 | . . . 1 3 . . . 6 6 7 1 . 1 . Corruption Purged 4 | . . . . . . . . . . . 3 . 1 . Corruption Blocked . | . . . . . . . . . . . . . . . Effects 110 | . . . 1 29 . . . 2 34 43 1 . . . Message Errors 33 | . . . . 6 . . . . 11 15 1 . . . Matter Fused 20 | . . . . 4 . . . . 6 10 . . . . Heat Flow Errors 11 | . . . . 3 . . . . 6 2 . . . . Energy Discharges 9 | . . . . 4 . . . . 1 4 . . . . Parts Rejected 6 | . . . 1 2 . . . 2 . 1 . . . . Data Loss (minor) 15 | . . . . 4 . . . . 4 7 . . . . Data Loss (major) 5 | . . . . 2 . . . . 1 2 . . . . Misfires 7 | . . . . 3 . . . . 3 1 . . . . Alerts 3 | . . . . . . . . . 2 1 . . . . Weapon Failures 1 | . . . . 1 . . . . . . . . . . Overload Shots . | . . . . . . . . . . . . . . . Overflow Damage 262 | . . . 3 . . . . . . 146 41 . 32 40 Projectiles 3 | . . . 3 . . . . . . . . . . . Explosions . | . . . . . . . . . . . . . . . Melee 259 | . . . . . . . . . . 146 41 . 32 40 Knockbacks 51 | . . . 9 41 . . . . . 1 . . . . Impact . | . . . . . . . . . . . . . . . Kinetic 46 | . . . 8 37 . . . . . 1 . . . . Secondary 5 | . . . 1 4 . . . . . . . . . . Self-Inflicted Damage . | . . . . . . . . . . . . . . . Shots . | . . . . . . . . . . . . . . . Rammed . | . . . . . . . . . . . . . . . Targets Rammed 4 | . . . . 2 1 . . . 1 . . . . . Kicked 4 | . . . . 2 1 . . . 1 . . . . . Crushed . | . . . . . . . . . . . . . . . Highest Temperature 418 | . 324 342 108 241 2 8 . . 257 418 334 . 19 . Average Temperature 88 | . 110 113 29 26 1 8 . . 72 138 147 . 11 . Received Heat Transfer 2579 | . 165 150 216 738 . 81 . . 117 269 405 . 402 36 Effects 3 | . . . . . . . . . . 3 . . . . Interference 2 | . . . . . . . . . . 2 . . . . Damage (minor) 1 | . . . . . . . . . . 1 . . . . Siege Activations . | . . . . . . . . . . . . . . . Robots Corrupted . | . . . . . . . . . . . . . . . Combat Hostiles . | . . . . . . . . . . . . . . . Parts Fried 1 | . . . . . . . . . . 1 . . . . Impact Corruptions . | . . . . . . . . . . . . . . . Robots Melted 1 | . 1 . . . . . . . . . . . . . Combat Hostiles . | . . . . . . . . . . . . . . . Parts Melted 8 | . 3 5 . . . . . . . . . . . . Heat Transferred 4958 | . 2183 2553 222 . . . . . . . . . . . Parts Sabotaged . | . . . . . . . . . . . . . . . Parts Stolen . | . . . . . . . . . . . . . . . Parts Stripped . | . . . . . . . . . . . . . . . Power Chain Reactions . | . . . . . . . . . . . . . . . Missiles Intercepted . | . . . . . . . . . . . . . . . Alert | -11 -10 -9 -9 -8 -7 -7 -6 -6 -6 -6 -5 -4 -4 -3 ------- Run | Scr Mat Mat Sto Mat Fac DSF Fac Was Fac Ext Fac Fac DSF Res Peak Influence 773 | . 270 333 447 629 285 394 226 79 119 384 773 327 247 236 Initial 321 | . . 113 78 97 278 199 206 79 55 58 137 321 232 138 Average 263 | . 105 213 199 485 278 278 216 79 43 209 540 322 229 142 Maximum Alert Level 3 | . 1 1 2 2 1 1 1 . . 1 3 1 1 1 Low Security (%) 45 | 100 71 39 52 9 . 45 . 100 100 49 5 . . 86 Level 1 29 | . 28 60 40 14 100 54 100 . . 50 6 100 100 13 Level 2 22 | . . . 7 75 . . . . . . 66 . . . Level 3 2 | . . . . . . . . . . . 21 . . . Level 4 . | . . . . . . . . . . . . . . . Level 5 . | . . . . . . . . . . . . . . . High Security . | . . . . . . . . . . . . . . . Max Security . | . . . . . . . . . . . . . . . Sterilizations 1 | . . . . . . 1 . . . . . . . . Squads Dispatched 22 | . 2 . 4 5 . 2 1 . 3 1 3 . 1 . Investigation 4 | . 1 . 1 2 . . . . . . . . . . Extermination 2 | . . . . . . . . . 1 . 1 . . . Reinforcement 12 | . 1 . 1 2 . 2 1 . 2 1 1 . 1 . Assault 4 | . . . 2 1 . . . . . . 1 . . . Garrison . | . . . . . . . . . . . . . . . Intercept . | . . . . . . . . . . . . . . . Searches Triggered . | . . . . . . . . . . . . . . . Construction Impeded 3 | . . . 1 . . . . . 2 . . . . . Haulers Reinforced . | . . . . . . . . . . . . . . . Active Scanning Responses . | . . . . . . . . . . . . . . . Cargo Convoy Interrupts . | . . . . . . . . . . . . . . . Stealth | -11 -10 -9 -9 -8 -7 -7 -6 -6 -6 -6 -5 -4 -4 -3 --------- Run | Scr Mat Mat Sto Mat Fac DSF Fac Was Fac Ext Fac Fac DSF Res Distress Signals 14 | . . 3 4 4 . . . . . 2 1 . . . Communications Jammed . | . . . . . . . . . . . . . . . Distress Signals . | . . . . . . . . . . . . . . . Times Spotted 237 | . 20 27 31 62 . 11 1 5 7 27 31 . 6 9 Peak Tracking Total 8 | . 5 8 8 6 . 6 . 5 3 5 6 . 4 6 Tactical Retreats 20 | . 2 2 . 6 . . . . 1 2 5 . 1 1 Traps | -11 -10 -9 -9 -8 -7 -7 -6 -6 -6 -6 -5 -4 -4 -3 ------- Run | Scr Mat Mat Sto Mat Fac DSF Fac Was Fac Ext Fac Fac DSF Res Traps Triggered 18 | . 1 . 4 2 . 2 1 . 1 2 1 . 3 1 Indirectly . | . . . . . . . . . . . . . . . Trap Hack Attempts . | . . . . . . . . . . . . . . . Triggered . | . . . . . . . . . . . . . . . Disarmed . | . . . . . . . . . . . . . . . Reprogrammed . | . . . . . . . . . . . . . . . Reused . | . . . . . . . . . . . . . . . Traps Extracted . | . . . . . . . . . . . . . . . Installed . | . . . . . . . . . . . . . . . Triggered . | . . . . . . . . . . . . . . . Machines | -11 -10 -9 -9 -8 -7 -7 -6 -6 -6 -6 -5 -4 -4 -3 ---------- Run | Scr Mat Mat Sto Mat Fac DSF Fac Was Fac Ext Fac Fac DSF Res Machines Disabled 18 | . 2 . 2 . . . . . 2 5 7 . . . Max in Single Turn 1 | . 1 . 1 . . . . . 1 1 1 . . . Garrison Access 3 | . . . 1 1 . . . . 1 . . . . . Machines Sabotaged . | . . . . . . . . . . . . . . . Garrisons Compromised . | . . . . . . . . . . . . . . . Overloaded Fab Kills . | . . . . . . . . . . . . . . . Hacking | -11 -10 -9 -9 -8 -7 -7 -6 -6 -6 -6 -5 -4 -4 -3 --------- Run | Scr Mat Mat Sto Mat Fac DSF Fac Was Fac Ext Fac Fac DSF Res Machines Accessed 44 | . 4 5 10 7 2 . 1 . 6 4 1 1 . 3 Terminals 35 | . 4 3 9 6 2 . 1 . 1 4 1 1 . 3 Fabricators 1 | . . . . . . . . . 1 . . . . . Repair Stations 2 | . . . . . . . . . 2 . . . . . Recycling Units 2 | . . 2 . . . . . . . . . . . . Scanalyzers 1 | . . . . . . . . . 1 . . . . . Garrison Access 3 | . . . 1 1 . . . . 1 . . . . . Total Hacks 100 | . 9 10 28 19 4 . 1 . 14 8 2 2 . 3 Successful 54 | . 4 4 15 10 1 . 1 . 12 3 1 1 . 2 Failed 46 | . 5 6 13 9 3 . . . 2 5 1 1 . 1 Catastrophic 8 | . . . 2 1 . . . . 1 3 . . . 1 Database Lockouts . | . . . . . . . . . . . . . . . Manual 25 | . 3 1 11 7 . . . . 1 2 . . . . Terminals 79 | . 9 4 27 18 4 . 1 . 1 8 2 2 . 3 Fabricators 5 | . . . . . . . . . 5 . . . . . Repair Stations 5 | . . . . . . . . . 5 . . . . . Recycling Units 6 | . . 6 . . . . . . . . . . . . Scanalyzers 2 | . . . . . . . . . 2 . . . . . Garrison Access 3 | . . . 1 1 . . . . 1 . . . . . Terminal Hacks 31 | . 4 1 8 8 1 . 1 . 1 3 1 1 . 2 Robot Analysis 2 | . 1 . . 1 . . . . . . . . . . Prototype ID Bank 6 | . 1 . 1 2 . . . . . 1 . . . 1 Open Door 4 | . . . 2 . . . . . 1 1 . . . . Open DSF 4 | . . . . . 1 . 1 . . . . 1 . 1 Branch Access Points 1 | . . . . 1 . . . . . . . . . . Alert Level 1 | . . . . . . . . . . . 1 . . . Unreport Threat 4 | . . 1 2 1 . . . . . . . . . . Dispatch Records 1 | . . . 1 . . . . . . . . . . . Hauler Manifests 2 | . . . 1 1 . . . . . . . . . . Registered Components 1 | . . . . 1 . . . . . . . . . . Zone Layout 5 | . 2 . 1 1 . . . . . 1 . . . . Fabricator Hacks 4 | . . . . . . . . . 4 . . . . . Load Schematic 2 | . . . . . . . . . 2 . . . . . Build 2 | . . . . . . . . . 2 . . . . . Repair Station Hacks 4 | . . . . . . . . . 4 . . . . . Scan Component 2 | . . . . . . . . . 2 . . . . . Repair 2 | . . . . . . . . . 2 . . . . . Recycling Unit Hacks 3 | . . 3 . . . . . . . . . . . . Report Inventory 1 | . . 1 . . . . . . . . . . . . Retrieve Components 2 | . . 2 . . . . . . . . . . . . Scanalyzer 2 | . . . . . . . . . 2 . . . . . Insert Component 1 | . . . . . . . . . 1 . . . . . Analyze 1 | . . . . . . . . . 1 . . . . . Garrison Access Hacks 3 | . . . 1 1 . . . . 1 . . . . . Seal Access 3 | . . . 1 1 . . . . 1 . . . . . Unauthorized Hacks 7 | . . . 6 1 . . . . . . . . . . Terminals 7 | . . . 6 1 . . . . . . . . . . Botnet 6 | . . . 5 1 . . . . . . . . . . Operators 1 | . . . 1 . . . . . . . . . . . Fabricators . | . . . . . . . . . . . . . . . Repair Stations . | . . . . . . . . . . . . . . . Recycling Units . | . . . . . . . . . . . . . . . Scanalyzers . | . . . . . . . . . . . . . . . Garrison Access . | . . . . . . . . . . . . . . . Data Cores Recovered 1 | . . . 1 . . . . . . . . . . . Used . | . . . . . . . . . . . . . . . Hacking Detections 35 | . 4 4 8 5 2 . 1 . 3 3 1 1 . 3 Full Trace Events 1 | . . 1 . . . . . . . . . . . . Feedback Events . | . . . . . . . . . . . . . . . Feedback Blocked . | . . . . . . . . . . . . . . . Robot Schematics Acquired . | . . . . . . . . . . . . . . . Robots Built . | . . . . . . . . . . . . . . . Authchips . | . . . . . . . . . . . . . . . Time . | . . . . . . . . . . . . . . . Total Robot Build Rating . | . . . . . . . . . . . . . . . Part Schematics Acquired 1 | . . . . . . . . . 1 . . . . . Parts Built 2 | . . . . . . . . . 2 . . . . . Authchips 2 | . . . . . . . . . 2 . . . . . Time 256 | . . . . . . . . . 256 . . . . . Total Part Build Rating 16 | . . . . . . . . . 16 . . . . . Parts Repaired 2 | . . . . . . . . . 2 . . . . . Time 117 | . . . . . . . . . 117 . . . . . Parts Recycled . | . . . . . . . . . . . . . . . Recycled Matter . | . . . . . . . . . . . . . . . Retrieved Matter . | . . . . . . . . . . . . . . . Retrieved Components 13 | . . 13 . . . . . . . . . . . . Parts Scanalyzed 1 | . . . . . . . . . 1 . . . . . Part Schematics Acquired 1 | . . . . . . . . . 1 . . . . . Parts Damaged . | . . . . . . . . . . . . . . . Bothacking | -11 -10 -9 -9 -8 -7 -7 -6 -6 -6 -6 -5 -4 -4 -3 ------------ Run | Scr Mat Mat Sto Mat Fac DSF Fac Was Fac Ext Fac Fac DSF Res Used RIF Installer . | . . . . . . . . . . . . . . . Robots Hacked . | . . . . . . . . . . . . . . . Non-combat . | . . . . . . . . . . . . . . . Combat . | . . . . . . . . . . . . . . . Robot Hacks Applied . | . . . . . . . . . . . . . . . Relay Couplers Released . | . . . . . . . . . . . . . . . Fabnet Peak Effective % . | . . . . . . . . . . . . . . . Robots Rewired 16 | . . . . . 1 . . . . 14 1 . . . Allies Hacked . | . . . . . . . . . . . . . . . Hacks Repelled . | . . . . . . . . . . . . . . . Allies | -11 -10 -9 -9 -8 -7 -7 -6 -6 -6 -6 -5 -4 -4 -3 -------- Run | Scr Mat Mat Sto Mat Fac DSF Fac Was Fac Ext Fac Fac DSF Res Total Allies 23 | . . . 2 . 1 . . . . 19 1 . . . Largest Group 10 | . . . 2 . 1 1 . . . 10 7 . . . Highest-Rated Group 418 | . . . 62 . 21 21 . . . 418 201 . . . Highest-Rated Ally 159 | . . . 31 . 21 21 . . . 159 49 . . . Total Orders 1 | . . . . . . 1 . . . . . . . . ROAM 1 | . . . . . . 1 . . . . . . . . Ally Attacks 182 | . . . 15 . . . . . . 119 48 . . . Total Damage 4726 | . . . 272 . . . . . . 2793 1661 . . . Kills 33 | . . . 2 . . . . . . 14 17 . . . Allies Corrupted . | . . . . . . . . . . . . . . . Allies Melted . | . . . . . . . . . . . . . . . Intel | -11 -10 -9 -9 -8 -7 -7 -6 -6 -6 -6 -5 -4 -4 -3 ------- Run | Scr Mat Mat Sto Mat Fac DSF Fac Was Fac Ext Fac Fac DSF Res Robot Analysis Total 2 | . 1 . . 1 . . . . . . . . . . Derelict Logs Recovered . | . . . . . . . . . . . . . . . Drone Launches . | . . . . . . . . . . . . . . . Drone Recoveries . | . . . . . . . . . . . . . . . Exploration | -11 -10 -9 -9 -8 -7 -7 -6 -6 -6 -6 -5 -4 -4 -3 ------------- Run | Scr Mat Mat Sto Mat Fac DSF Fac Was Fac Ext Fac Fac DSF Res Turns Passed 9396 | 82 792 936 1090 1872 114 236 37 89 1194 1356 936 83 75 504 Spaces Moved 5402 | 53 484 563 645 1020 64 126 28 66 730 678 539 61 34 311 Core 24 | 17 . . . . . . . . . . 7 . . . Treads . | . . . . . . . . . . . . . . . Legs 4905 | 36 484 563 645 1020 64 126 28 66 730 678 465 . . . Wheels . | . . . . . . . . . . . . . . . Hover 473 | . . . . . . . . . . . 67 61 34 311 Flight . | . . . . . . . . . . . . . . . Fastest Speed 50 | 50 120 120 120 120 130 130 130 130 126 120 108 108 106 106 Average Speed 126 | 130 120 120 120 126 130 130 130 130 127 144 138 108 107 106 Slowest Speed 1150 | 200 120 120 120 130 130 130 130 130 130 196 1150 108 108 106 Overloaded Moves . | . . . . . . . . . . . . . . . Propulsion Burnouts . | . . . . . . . . . . . . . . . Robots Hopped . | . . . . . . . . . . . . . . . Cave-ins Triggered . | . . . . . . . . . . . . . . . Exploration Rate (%) 39 | 4 60 40 90 73 2 89 2 77 15 72 15 2 45 9 Regions Visited 14 Branch Regions 2 Pre-discovered Areas . | . . . . . . . . . . . . . . . Known Exits Taken 4 | . . . 1 . 1 . . . 1 . . 1 . . Unknown Exits Taken 6 | 1 1 1 . 1 . . . . . 1 1 . . . Scrap Searched . | . . . . . . . . . . . . . . . Spaces Dug 32 | . . . . 1 . . . . 8 1 7 3 . 12 Terrain Destroyed 83 | . . . 34 3 . 10 . . 8 5 8 3 . 12 Melee 32 | . . . . 1 . . . . 8 1 7 3 . 12 Projectile 11 | . . . 4 2 . . . . . 4 1 . . . AOE 40 | . . . 30 . . 10 . . . . . . . . Terrain Rammed . | . . . . . . . . . . . . . . . Walls Destroyed . | . . . . . . . . . . . . . . . Machines Disabled . | . . . . . . . . . . . . . . . Actions | -11 -10 -9 -9 -8 -7 -7 -6 -6 -6 -6 -5 -4 -4 -3 --------- Run | Scr Mat Mat Sto Mat Fac DSF Fac Was Fac Ext Fac Fac DSF Res Total 7148 | 63 607 727 853 1420 89 172 29 68 954 961 651 70 53 431 Wait 773 | . 43 76 105 216 3 10 . . 180 51 11 . . 78 Move 5389 | 52 483 562 644 1019 63 125 28 65 729 677 538 60 33 311 Hop . | . . . . . . . . . . . . . . . Pick Up 79 | 5 9 10 5 19 . 5 . 1 5 7 3 4 1 5 Fast Attach 64 | 6 3 2 3 13 . 1 . 2 2 8 13 2 3 6 Attach 36 | . 2 6 3 3 2 2 1 . 4 3 7 . 3 . Detach 18 | . 2 1 . 2 . 1 . . 2 4 5 1 . . Swap 76 | . 8 8 13 15 . 2 . . 11 15 4 . . . Drop 103 | . 11 12 12 33 . 3 . . 2 12 8 . 4 6 Fire 298 | . 46 50 58 97 3 15 . . 9 13 7 . . . Melee 105 | . . . . 1 . . . . 9 31 27 3 9 25 Ram . | . . . . . . . . . . . . . . . Kick 4 | . . . . 2 1 . . . 1 . . . . . Crush . | . . . . . . . . . . . . . . . Escape Stasis 24 | . . . 10 . . 8 . . . 6 . . . . Rewire 179 | . . . . . 17 . . . . 134 28 . . . Trap . | . . . . . . . . . . . . . . . Miscellaneous . | . . . . . . . . . . . . . . . Route ------- -11/Scrapyard -10/Materials (discovered 2 exits: *Mat / [*Min]) -9/Materials (discovered 2 exits: *Mat / *Sto) -9/Storage (discovered 2 exits: *Mat / [*Rec]) -8/Materials -7/Factory -7/DSF -6/Factory -6/Waste -6/Factory -6/Extension (discovered 2 exits: *Fac / [*Cet]) -5/Factory (discovered 2 exits: *Fac / [*Upp]) -4/Factory -4/DSF -3/Research History --------- Turn | Location | Event 10 | -11/Scrapyard | Discovered new exit (range 15) 83 | -11/Scrapyard | Entered Materials 125 | -10/Materials | Discovered new exit (range 15) 300 | -10/Materials | Build established: Mutant 528 | -10/Materials | Discovered new exit (range 14) 632 | -10/Materials | Core integrity fell below 50% 875 | -10/Materials | Entered another Materials area 875 | -9/Materials | Evolved 2 slots: Propulsion x1, Utility x1 1102 | -9/Materials | Discovered new exit (range 12) 1325 | -9/Materials | Destroyed 7 combat bots 1432 | -9/Materials | Discovered new exit (range 16) 1666 | -9/Materials | Identified exit to Materials 1811 | -9/Materials | Entered Storage 2020 | -9/Storage | Used back door to open Recycling access 2020 | -9/Storage | Discovered new exit (range 5) 2416 | -9/Storage | Met a pair of Derelict thieves 2609 | -9/Storage | Found Prototype Protection 2609 | -9/Storage | Identified Lgt. Regenerative Plating 2753 | -9/Storage | Discovered exit to Materials (range 12) 2901 | -9/Storage | Entered Materials 2901 | -8/Materials | Evolved 2 slots: Utility x2 3627 | -8/Materials | Discovered new exit (range 16) 4501 | -8/Materials | First assault squad dispatched 4773 | -8/Materials | Entered Factory 4773 | -7/Factory | Evolved 2 slots: Utility x1, Weapon x1 4887 | -7/Factory | Identified exit to DSF 4887 | -7/Factory | Entered DSF 4887 | -7/DSF | Accompanied by 1 ally 4926 | -7/DSF | Additional patrols routed to DSF 5043 | -7/DSF | Sterilization system engaged 5063 | -7/DSF | Ambient heat levels rising (+10) 5069 | -7/DSF | Build established: Gunner 5078 | -7/DSF | Ambient heat levels rising (+10) 5089 | -7/DSF | Discovered new exit (range 15) 5093 | -7/DSF | Ambient heat levels rising (+10) 5108 | -7/DSF | Ambient heat levels rising (+10) 5123 | -7/DSF | Ambient heat levels rising (+10) 5123 | -7/DSF | Entered Factory 5123 | -6/Factory | Evolved 2 slots: Utility x2 5160 | -6/Factory | Sucked down chute 5160 | -6/Factory | Entered Waste 5172 | -6/Waste | Spotted C-40 Crusher 5175 | -6/Waste | EMP discharged 5175 | -6/Waste | Found Broken Enh. Force Lance 5176 | -6/Waste | Spotted C-40 Crusher 5178 | -6/Waste | Spotted C-40 Crusher 5195 | -6/Waste | Spotted C-40 Crusher 5203 | -6/Waste | Spotted C-40 Crusher 5223 | -6/Waste | Discovered new exit (range 20) 5223 | -6/Waste | Spotted C-40 Crusher 5249 | -6/Waste | Entered Factory 5646 | -6/Factory | Discovered new exit (range 10) 5840 | -6/Factory | Repaired Broken Enh. Force Lance 6088 | -6/Factory | Repaired Gauss Rifle 6111 | -6/Factory | Fabricated Enh. Force Lance? 6266 | -6/Factory | Fabricated Enh. Force Lance? 6389 | -6/Factory | Identified exit to Extension 6443 | -6/Factory | Entered Extension 6529 | -6/Extension | Rescued a captive Derelict 6769 | -6/Extension | Rescued a captive Derelict 6770 | -6/Extension | Rescued a captive Derelict 6855 | -6/Extension | Rescued A7 6903 | -6/Extension | Build established: Mutant 7225 | -6/Extension | Spotted B-75 Beast 7244 | -6/Extension | Spotted B-75 Beast 7261 | -6/Extension | Extracted ID and sensor layout for unrecognized location from A7's data core 7266 | -6/Extension | Allies destroyed B-75 Beast 7276 | -6/Extension | Allies destroyed B-75 Beast 7538 | -6/Extension | Rescued a captive Derelict 7749 | -6/Extension | Discovered new exit (range 10) 7755 | -6/Extension | Discovered new exit (range 6) 7799 | -6/Extension | Entered Factory 7799 | -5/Factory | Accompanied by 7 allies 7799 | -5/Factory | Evolved 2 slots: Propulsion x1, Utility x1 7837 | -5/Factory | Discovered new exit (range 5) 8004 | -5/Factory | Build established: Commander-Mutant 8318 | -5/Factory | Discovered new exit (range 13) 8564 | -5/Factory | Lost 7 parts (4n3u) 8637 | -5/Factory | Build established: Mutant 8699 | -5/Factory | First assault squad dispatched 8735 | -5/Factory | Entered another Factory area 8735 | -4/Factory | Evolved 2 slots: Utility x2 8818 | -4/Factory | Identified exit to DSF 8818 | -4/Factory | Entered DSF 8857 | -4/DSF | Discovered new exit (range 19) 8867 | -4/DSF | Additional patrols routed to DSF 8893 | -4/DSF | Entered Research 8893 | -3/Research | Evolved 2 slots: Propulsion x1, Utility x1 8915 | -3/Research | Lost 4 parts (1p3u) 9347 | -3/Research | Spotted B-86 Titan 9397 | -3/Research | Self-destructed Last Messages --------------- 09229_ K-01 Serf collects debris. 09230_ Acquired Med. Treads. 09233_ K-01 Serf collects debris. 09326_ Connecting with Repair Station... 09329_ U-05 Engineer builds a Wall. 09350_ Penetrated by Slug. 09350_ Adv. Transmission Jammer destroyed. 09353_ Penetrated by Slug. 09357_ U-05 Engineer builds a Wall. 09364_ Slug penetrates Wall. 09369_ U-05 Engineer builds a Wall. 09372_ Slug penetrates Wall. 09381_ Imp. Reaction Control System destroyed. 09385_ Slug penetrates Wall. 09387_ Gravmag Array destroyed. 09388_ S-43 Plague destroyed. 09388_ Slug penetrates Wall. 09394_ Penetrated by Slug. 09394_ Slug penetrates Wall. 09396_ System Restoration Module destroyed. Map ----- +----------------------------------------------------+ | ?????????????????????????????????????????????????? | | ?????????????????????????????????????????????????? | | ?????????????????????????????????????????????????? | | ?????????????????????????????????????????????????? | | ?????????????????????????????????????????????????? | | ?????????????????????????????????????????????????? | | ?????????????????????????????????????????????????? | | ?????????????????????????????????????????????????? | | ??????????????????????????? ???????????????????? | | ??????????????????????????? ???????????????????? | | ?????###################### "??????????????????? | | ?????# ""?????????????????? | | ?????# ???????????????? | | ????# ???????????????? | | ???# !!! ??? #??????????? | | #### !!! ^ """? ############ | | ^ !! """"" ! """" # | | ^ """"" """" # | | """"" """" # | | # | | ###### + | | ???### # | | ???######+################# """" # | | ????# # # """" # | | ????# # # """" ##########+# | | ????# # @# """" #?# | | ????# = # =s% #?# | | ????# % # #s ### | | ???## " " # # | | ???# ""R"" # ###########+### | | ???## """"" # #??## # | | ????########### [[#???# # | | ?????????????## []#??## """"" # | | ??????????????# #??#" """"" # | | ??????????????# #??## """"" # | | ??????????????# #???# *# | | ??????????????#############???# #########+ | | ??????????????????????????????# #??# | | ??????????????????????????????###########??# | | ???????????????????????????????????????????# | | ???????????????????????????????????????????# | | ???????????????????????????????????????????# | | ???????????????????????????????????????????# !* | | ???????????????????????????????????????????# ** | | ???????????????????????????????????????????# ** | | ???????????????????????????????????????????# | | ???????????????????????????????????????????# | | ???????????????????????????????????????????# | | ???????????????????????????????????????????# | | ???????????????????????????????????????????####### | +----------------------------------------------------+ Best States ------------- Heat Dissipation 51 Coolant Potential 50 Energy Generation 25 Energy Capacity 350 Matter Stores 300 Matter Capacity 300 Sight Range 20 Robot Scan Range 16 Terrain Scan Density 10 Jamming Range 16 Armor Coverage 600 Resistance: EM 15 Weapon Shielding 66 Evasion (%) 59 Targeting Accuracy 6 Melee Accuracy 12 Target Analysis 7 Core Analysis 9 Particle Charging 20 Offensive Hacking 10 Authchip Count 3 Item Schematics ----------------- Enh. Force Lance | -6/Factory | Scanalyzed Robot Schematics ------------------ None Fabricated ------------ Enh. Force Lance | x1 | -6/Factory | Authchip Enh. Force Lance | x1 | -6/Factory | Authchip Alien Tech Used ----------------- None Achievements -------------- None Challenges ------------ None Game ------ Seed CloakingCombatThrower Manual? 0 Play Time 01:44:25 Cumulative 159.7 hours Start 2022.03.20 @ 13:47:32 End 2022.03.20 @ 23:25:50 Sessions 7 Manual Loads 0 Difficulty Rogue Special Mode None Game No. 115 Rogue 115 Adventurer 0 Explorer 0 Win Type - Total 3 Types 3/0/0/0/0/0/0/0/0 Lore% 62 Gallery% 70 Achievement% 58 Wizard Run 0 Options --------- ASCII 0 Keyboard 1 Movement Numpad Keybinds 0 Fullscreen 2 Font 18/Smallcaps Map View 76x50 Tactical HUD 1 Map Filters NONE Filters NONE Steam 1 RUN: eb683bc6-f63a-4e37-b3f0-421e3e086bb3